bitfinex/quotes_ETHUSD_20260121
["timestamp","ask_amount","ask_price","bid_price","bid_amount"]
[1768984777468,11.7896487,2963.3,2962.4,12.79874014]
[1768984777655,11.7896487,2963.3,2962.4,14.41618969]
[1768984779061,11.83083282,2963.2,2962.4,12.79874014]
[1768984779265,0.001,2963.3,2962.4,12.79874014]
[1768984781255,11.7896487,2963.3,2962.4,12.79874014]
[1768984784377,11.7886487,2963.1,2961.7,0.002]
[1768984784692,11.7886487,2962.9,2961.7,0.002]
[1768984784991,11.7886487,2962.7,2961.7,0.002]
[1768984785360,12.76182084,2962.5,2961.5,0.002]
[1768984786967,12.76182084,2962.5,2961.2,11.96338973]
[1768984786968,12.76182084,2962.5,2961.2,0.002]
[1768984787487,0.128,2962.9,2961.2,0.002]
[1768984787488,3.37564137,2962.4,2961.2,0.002]
[1768984787788,12.76182084,2962.3,2961.2,0.002]
[1768984787965,12.76182084,2962.1,2961.2,0.002]
[1768984789468,12.76182084,2962.1,2961.7,0.002]
[1768984789659,12.76182084,2962.1,2961.2,0.002]
[1768984789961,12.76182084,2962.1,2961.5,0.002]
[1768984790159,12.76182084,2962.1,2961.2,0.002]
[1768984790392,14.19937755,2962.0,2961.2,0.002]
[1768984791090,14.19937755,2962.0,2961.2,11.96338973]
[1768984791272,1.43755671,2962.0,2961.2,11.96338973]
[1768984791589,14.19937755,2962.0,2961.2,11.96338973]
[1768984792291,1.43755671,2962.0,2961.2,11.96338973]
[1768984793478,1.41993776,2961.9,2961.2,11.96338973]
[1768984793675,0.001,2962.3,2961.3,11.96138973]
[1768984794170,0.001,2962.3,2961.5,11.96138973]
[1768984797178,0.001,2962.3,2961.5,15.33803224]
[1768984797491,0.001,2962.3,2961.6,11.96138973]
[1768984800095,12.76282084,2962.3,2961.6,11.96138973]
[1768984800272,1.27628208,2962.2,2961.6,11.96138973]
[1768984801103,0.001,2962.3,2961.6,11.96138973]
[1768984801674,0.001,2962.3,2961.7,12.9638851]
[1768984802002,0.001,2962.1,2961.7,12.9638851]
[1768984802394,0.001,2962.1,2961.7,16.34024105]
[1768984802698,0.001,2963.3,2961.7,16.34024105]
[1768984802699,11.78528964,2963.2,2961.8,12.9638851]
[1768984802898,11.78528964,2963.2,2961.7,6.75279515]
[1768984802899,13.00610414,2963.1,2962.0,12.9638851]
[1768984803067,12.9639186,2963.1,2962.0,12.9638851]
[1768984803672,0.001,2963.3,2962.0,12.9638851]
[1768984804073,0.0431827,2963.3,2962.0,12.9638851]
[1768984804292,0.001,2963.3,2962.2,12.9638851]
[1768984804495,11.82847234,2963.3,2962.2,12.9638851]
[1768984804801,11.78628964,2963.3,2962.2,12.9638851]
[1768984805008,11.78628964,2963.3,2962.4,12.9638851]
[1768984805905,0.001,2963.3,2962.4,12.9638851]
[1768984806505,0.001,2963.3,2962.5,12.9638851]
[1768984809316,0.001,2963.3,2962.6,12.9638851]
[1768984811819,0.001,2963.3,2962.7,12.9638851]
[1768984812111,0.001,2963.3,2962.8,14.5978113]
[1768984813723,0.001,2963.3,2962.8,1.6339262]
[1768984813915,0.001,2963.3,2962.6,12.9638851]
[1768984814101,0.001,2963.1,2962.6,12.9638851]
[1768984814307,0.001,2963.1,2962.7,12.9638851]
[1768984819697,0.001,2963.1,2962.4,12.06987329]
[1768984819899,0.001,2963.1,2962.6,3.37540408]
[1768984820098,0.001,2963.1,2962.8,12.06987329]
[1768984820619,0.001,2963.3,2962.8,12.06987329]
[1768984821223,0.001,2963.3,2962.9,12.06987329]
[1768984821799,12.95334523,2963.7,2963.6,0.0006]
[1768984825835,12.95434523,2963.9,2963.6,0.0006]
[1768984826333,14.74259333,2963.9,2963.6,0.0006]
[1768984826536,17.88148096,2963.7,2963.0,0.002]
[1768984826837,12.95334523,2963.1,2962.8,0.002]
[1768984828132,12.95334523,2963.6,2962.8,0.002]
[1768984828334,12.95334523,2963.6,2962.8,12.07187329]
[1768984828907,0.0018,2963.9,2962.8,12.07187329]
[1768984828908,12.95334523,2963.8,2962.8,12.07187329]
[1768984829143,0.0018,2963.9,2963.0,12.06987329]
[1768984829443,14.29283391,2963.9,2963.0,12.06987329]
[1768984829643,14.25065975,2963.9,2963.0,12.06987329]
[1768984829843,12.99552081,2963.8,2963.0,12.06987329]
[1768984830145,1.29731452,2963.9,2963.0,12.06987329]
[1768984830445,12.95514523,2963.9,2963.0,12.06987329]
[1768984833935,0.0018,2963.9,2963.0,12.06987329]
[1768984834247,12.95514523,2963.9,2963.0,12.06987329]
[1768984834422,12.95334523,2963.7,2962.8,12.07187329]
[1768984834618,12.95334523,2963.5,2962.8,0.002]
[1768984834818,14.2528976,2963.5,2962.8,0.002]
[1768984835628,12.95334523,2963.5,2962.8,12.07187329]
[1768984835847,12.95334523,2963.8,2962.8,12.07187329]
[1768984836951,0.0018,2963.9,2962.8,12.07187329]
[1768984837650,12.95514523,2963.9,2962.8,12.07187329]
[1768984837953,12.95514523,2963.9,2963.0,12.06987329]
[1768984838158,12.95514523,2963.9,2963.2,12.06987329]
[1768984838744,0.0018,2963.9,2963.2,12.06987329]
[1768984839229,0.001,2963.3,2963.2,12.06987329]
[1768984839849,0.001,2963.3,2963.1,1.5444945]
[1768984840066,0.001,2963.3,2963.0,0.002]
[1768984841265,12.95434523,2963.3,2963.0,0.002]
[1768984843869,12.95434523,2963.3,2962.8,0.002]
[1768984844342,12.95434523,2963.3,2962.0,12.06987329]
[1768984846977,12.95434523,2963.3,2962.1,11.99256647]
[1768984847142,14.24977975,2963.3,2962.3,11.99256647]
[1768984847639,0.001,2963.3,2962.3,11.99256647]
[1768984848770,0.0431827,2963.3,2962.3,11.99256647]
[1768984849070,12.80706459,2963.3,2962.3,11.99256647]
[1768984849375,12.76488189,2963.3,2962.3,11.99256647]
[1768984850448,12.76488189,2963.3,2962.4,11.99256647]
[1768984850648,12.76488189,2963.3,2962.4,13.68308358]
[1768984851755,12.76488189,2963.3,2962.6,0.002]
[1768984851945,0.04218412,2963.2,2962.6,0.002]
[1768984852150,12.76388189,2963.2,2962.6,0.002]
[1768984852753,0.001,2963.3,2962.6,11.99456647]
[1768984852948,0.001,2963.3,2962.6,13.53178711]
[1768984855084,0.001,2963.3,2962.7,11.99256647]
[1768984858787,0.001,2963.3,2962.7,3.37529691]
[1768984858959,0.001,2963.3,2962.8,11.99256647]
[1768984860895,0.001,2963.3,2962.9,11.99256647]
[1768984861093,0.001,2963.3,2963.0,1.53677164]
[1768984861267,0.001,2963.3,2962.9,11.92079205]
[1768984862166,11.80179744,2963.3,2962.7,11.92079205]
[1768984862380,11.80179744,2963.3,2962.6,0.002]
[1768984863495,11.80179744,2963.3,2962.6,11.92279205]
[1768984864307,0.001,2963.1,2962.6,11.92279205]
[1768984864512,0.001,2963.1,2962.6,13.94570758]
[1768984865301,0.001,2963.1,2962.7,11.92079205]
[1768984867410,0.001,2963.1,2962.6,2.02491553]
[1768984867411,11.80079744,2963.0,2962.6,0.002]
[1768984869220,0.001,2963.1,2962.6,11.92279205]
[1768984869720,11.80179744,2963.1,2962.6,11.92279205]
[1768984869924,1.18017974,2963.0,2962.6,0.002]
[1768984870119,11.80179744,2963.1,2962.6,0.002]
[1768984870521,0.001,2963.1,2962.6,11.92279205]
[1768984872819,0.001,2963.1,2962.7,11.92079205]
[1768984873247,11.80079744,2963.8,2963.1,11.92079205]
[1768984873539,11.80079744,2963.8,2963.2,11.92079205]
[1768984873705,11.80079744,2963.8,2963.2,13.94322845]
[1768984874838,0.0018,2963.9,2963.4,11.92079205]
[1768984876340,0.001,2963.6,2963.4,11.92079205]
[1768984877515,0.0018,2963.9,2963.5,4.92873525]
[1768984877713,0.0018,2963.9,2963.6,12.87162018]
[1768984877939,0.0018,2963.9,2963.6,14.98910526]
[1768984878334,0.0008,2964.2,2963.7,12.87162018]
[1768984878614,0.0008,2964.2,2963.6,2.11748508]
[1768984878615,0.0008,2964.2,2963.8,17.80035543]
[1768984879121,0.0008,2964.2,2963.9,12.87162018]
[1768984882321,0.0008,2964.2,2963.7,12.87162018]
[1768984882525,0.0008,2964.2,2963.8,1.49891053]
[1768984882832,0.0008,2964.2,2963.8,14.37053071]
[1768984883014,12.15751566,2964.2,2963.6,14.98910526]
[1768984883218,12.15751566,2964.2,2963.6,2.11748508]
[1768984883747,12.15751566,2964.2,2963.6,14.98910526]
[1768984884658,12.15751566,2964.2,2963.4,12.87162018]
[1768984884836,12.15671566,2964.0,2963.2,12.87162018]
[1768984886043,12.15671566,2963.8,2963.2,12.87162018]
[1768984886350,12.15671566,2963.8,2962.9,13.42962018]
[1768984886532,12.15671566,2963.8,2962.9,16.80467145]
[1768984886733,12.15671566,2963.8,2963.0,12.87162018]
[1768984887333,12.15671566,2963.8,2963.0,14.55208733]
[1768984887656,12.15671566,2964.1,2963.1,12.87162018]
[1768984888567,12.15671566,2964.1,2963.8,0.002]
[1768984888769,12.15771566,2964.0,2963.3,12.87162018]
[1768984888973,12.15771566,2964.0,2963.5,0.002]
[1768984889271,12.15771566,2964.0,2963.5,12.87362018]
[1768984889466,12.15771566,2964.0,2963.5,0.002]
[1768984890763,12.15771566,2964.0,2963.5,12.87362018]
[1768984894270,0.001,2964.0,2963.5,12.87362018]
[1768984894470,0.001,2964.0,2963.5,14.1609822]
[1768984894772,0.0008,2964.2,2963.6,12.87162018]
[1768984897788,12.19968555,2964.2,2963.6,12.87162018]
[1768984897984,12.15751566,2964.2,2963.6,12.87162018]
[1768984898577,12.15751566,2964.2,2963.0,14.55208733]
[1768984898578,12.15671566,2964.0,2963.0,14.55208733]
[1768984898888,12.15671566,2963.8,2963.0,12.87162018]
[1768984899101,0.05282465,2963.6,2963.0,12.87162018]
[1768984899463,12.20954031,2963.6,2962.8,12.87162018]
[1768984900713,12.20954031,2963.6,2962.9,12.87162018]
[1768984900998,0.05282465,2963.6,2963.2,12.87362018]
[1768984901492,12.20954031,2963.6,2963.2,0.002]
[1768984902897,12.20954031,2963.6,2963.0,0.002]
[1768984905292,0.05282465,2963.6,2963.1,12.87162018]
[1768984905678,12.51000106,2963.6,2963.1,12.87162018]
[1768984905885,12.51000106,2963.6,2963.0,0.002]
[1768984906708,12.51000106,2963.6,2963.0,11.76451519]
[1768984906939,12.51000106,2963.6,2963.0,12.94096671]
[1768984907203,0.05282465,2963.6,2963.0,12.94096671]
[1768984908821,12.51000106,2963.6,2963.0,12.94096671]
[1768984909012,12.51000106,2963.6,2963.0,11.76451519]
[1768984913424,12.51000106,2963.6,2963.2,0.002]
[1768984916053,12.45717641,2963.4,2963.2,0.002]
[1768984916248,12.45717641,2963.4,2963.0,0.002]
[1768984916458,12.45717641,2963.4,2962.6,0.002]
[1768984916663,12.45717641,2963.2,2962.6,0.002]
[1768984916814,17.3834526,2963.2,2962.4,0.002]
[1768984917162,12.45717641,2963.1,2962.4,0.002]
[1768984917447,12.45717641,2963.1,2962.5,11.76251519]
[1768984918009,12.45717641,2963.1,2962.4,0.002]
[1768984918237,12.45717641,2962.9,2962.4,0.002]
[1768984921985,12.45717641,2962.9,2962.4,12.23837335]
[1768984923075,11.72605049,2963.7,2962.5,12.23637335]
[1768984923238,11.72605049,2963.5,2962.5,12.23637335]
[1768984923443,11.72605049,2963.3,2962.5,12.23637335]
[1768984923676,11.72605049,2963.1,2962.4,0.002]
[1768984925083,11.72605049,2962.9,2962.4,0.002]
[1768984925467,11.72605049,2962.9,2962.6,0.002]
[1768984926762,11.72605049,2962.9,2962.4,0.002]
[1768984931594,11.72605049,2962.9,2962.4,12.23837335]
[1768984932270,11.72605049,2963.0,2962.4,12.23837335]
[1768984932477,1.17782289,2963.4,2962.4,12.23837335]
[1768984932478,11.72605049,2963.3,2962.4,13.46221069]
[1768984932889,12.90387338,2963.4,2962.4,13.46221069]
[1768984933090,11.72705049,2963.4,2962.4,13.46221069]
[1768984937207,11.72705049,2963.4,2962.6,0.002]
[1768984937407,0.0421827,2963.3,2962.7,12.59951329]
[1768984937606,12.0367709,2963.2,2962.7,12.59951329]
[1768984937907,13.24476626,2963.2,2962.7,12.59951329]
[1768984938108,13.24576626,2963.2,2962.7,12.59951329]
[1768984949535,0.001,2963.0,2962.7,12.59951329]
[1768984951146,0.001,2963.4,2962.9,12.59951329]
[1768984951317,0.001,2963.4,2962.9,12.33660648]
[1768984951514,0.001,2963.4,2963.1,12.59951329]
[1768984952244,0.001,2963.4,2963.0,1.72658801]
[1768984952245,0.001,2963.4,2963.0,14.3261013]
[1768984957757,0.001,2963.4,2963.1,12.59951329]
[1768984958951,12.0377709,2963.4,2963.0,1.72658801]
[1768984959253,12.0377709,2963.4,2962.9,12.59951329]
[1768984959835,0.001,2963.4,2962.9,12.59951329]
[1768984961763,0.001,2963.2,2962.9,12.59951329]
[1768984962751,0.001,2964.0,2962.9,12.59951329]
[1768984962963,12.0367709,2963.9,2962.9,12.59951329]
[1768984963163,12.0367709,2963.7,2962.9,12.59951329]
[1768984965476,12.0367709,2963.7,2963.0,12.84520894]
[1768984966277,11.95770875,2963.9,2963.2,12.84520894]
[1768984966578,11.95770875,2963.7,2962.7,12.84520894]
[1768984966743,11.95770875,2963.7,2962.9,12.84520894]
[1768984971279,11.95770875,2963.7,2963.0,12.84520894]
[1768984971590,0.001,2964.0,2963.2,12.84520894]
[1768984971774,11.95870875,2964.0,2963.2,12.84520894]
[1768984971982,13.15465962,2964.0,2963.2,12.84520894]
[1768984973282,0.001,2963.5,2963.2,12.84520894]
[1768984977781,11.95770875,2963.9,2963.2,12.84520894]
[1768984980867,11.95770875,2963.7,2962.9,12.84520894]
[1768984981106,11.95770875,2963.5,2962.9,12.84520894]
[1768984981266,11.95770875,2963.5,2962.7,11.7336268]
[1768984982471,11.95770875,2963.5,2962.6,0.002]
[1768984982894,11.95770875,2963.5,2962.6,11.7356268]
[1768984983771,11.95770875,2963.5,2962.7,11.7336268]
[1768984983965,11.95770875,2963.5,2962.8,13.24472518]
[1768984984167,11.95770875,2963.5,2962.8,11.7336268]
[1768984984563,11.95770875,2963.5,2962.6,11.7356268]
[1768984984982,11.95770875,2963.5,2962.9,0.002]
[1768984985365,11.95870875,2963.5,2962.9,0.002]
[1768984988308,11.95870875,2963.5,2962.8,6.7356268]
[1768984988520,12.52149902,2963.3,2962.8,6.7356268]
[1768984988832,12.52149902,2963.3,2962.6,0.002]
[1768984992122,12.52149902,2963.1,2962.6,0.002]
[1768984993958,12.52149902,2962.0,2961.0,0.002]
[1768984994161,12.52149902,2961.2,2960.3,11.7336276]
[1768984994517,12.52149902,2961.2,2960.3,8e-07]
[1768984994855,14.35428314,2961.2,2960.3,8e-07]
[1768984996345,12.54167416,2962.0,2960.3,8e-07]
[1768984997050,12.54167416,2962.0,2960.4,11.77907283]
[1768984997257,12.54167416,2962.0,2959.8,3.3805563]
[1768984997258,0.05,2961.5,2958.9,1.0142725]
[1768984997557,12.54167416,2960.1,2959.1,7.31928983]
[1768984997750,1.25424742,2960.0,2959.1,7.31928983]
[1768984997928,12.54167416,2959.9,2958.9,11.77907283]
[1768984998734,12.54167416,2959.9,2959.0,11.77907283]
[1768985001249,12.54167416,2959.9,2959.1,11.77907283]
[1768985001422,12.54167416,2960.1,2959.1,11.77907283]
[1768985002069,0.0008,2960.2,2959.1,11.77907283]
[1768985002354,0.0008,2960.2,2959.3,11.77907283]
[1768985003055,12.54247416,2960.2,2959.3,11.77907283]
[1768985003569,12.54247416,2960.2,2959.2,13.63287991]
[1768985003857,12.54247416,2960.2,2959.2,11.77907283]
[1768985004256,12.54247416,2960.2,2959.3,11.77907283]
[1768985006256,0.0008,2960.2,2959.4,11.77907283]
[1768985006776,12.54167416,2960.4,2959.4,11.77907283]
[1768985006934,12.54167416,2960.4,2959.6,11.77907283]
[1768985007130,0.0008,2960.5,2959.6,11.77907283]
[1768985007554,0.0008,2960.5,2959.7,11.77907283]
[1768985008872,12.54167416,2960.9,2959.7,11.77907283]
[1768985009071,12.54167416,2961.5,2959.7,11.77907283]
[1768985009273,0.001,2960.0,2959.9,11.77907283]
[1768985009481,12.54167416,2961.1,2960.0,11.77907283]
[1768985009770,12.54167416,2961.1,2960.1,11.77907283]
[1768985012333,12.54167416,2961.1,2960.2,11.77907283]
[1768985014275,12.54167416,2961.3,2960.4,11.77907283]
[1768985014473,12.54167416,2961.3,2960.5,13.29478371]
[1768985016383,12.54167416,2961.3,2960.5,11.77907283]
[1768985017655,12.54167416,2961.3,2960.6,11.77907283]
[1768985017994,15.22507016,2962.1,2960.6,11.77907283]
[1768985018143,12.54167416,2961.9,2960.8,11.77907283]
[1768985018348,12.54167416,2961.7,2960.8,11.77907283]
[1768985020486,12.54167416,2961.7,2959.8,2.19154969]
[1768985020487,30.0,2961.6,2959.8,2.19154969]
[1768985020659,12.54167416,2961.2,2959.6,11.77907283]
[1768985020859,12.54167416,2961.0,2959.6,11.77907283]
[1768985021195,12.54167416,2960.8,2959.6,11.77907283]
[1768985021372,13.80006327,2960.8,2959.7,13.29487077]
[1768985022088,13.80006327,2960.8,2959.8,11.77907283]
[1768985022277,13.80006327,2960.8,2959.9,11.77907283]
[1768985022657,12.54167416,2961.4,2960.0,11.77907283]
[1768985022874,12.54167416,2961.2,2960.0,11.77907283]
[1768985023075,0.001,2961.5,2960.0,11.77907283]
[1768985023076,0.04221404,2961.1,2960.0,11.77907283]
[1768985023295,12.54167416,2961.0,2959.8,11.77907283]
[1768985023462,12.54167416,2960.8,2959.8,11.77907283]
[1768985023663,13.17210354,2961.5,2959.8,11.77907283]
[1768985023664,12.54167416,2960.6,2959.8,13.10855991]
[1768985024908,12.54167416,2960.4,2958.7,11.77907283]
[1768985025115,12.54167416,2960.4,2958.9,11.77907283]
[1768985025271,12.21946506,2960.2,2958.9,11.77907283]
[1768985025975,12.21946506,2960.2,2959.0,12.73677193]
[1768985027905,12.21946506,2960.2,2959.1,12.73677193]
[1768985028203,12.21946506,2960.2,2959.2,14.34839977]
[1768985029403,12.21946506,2960.2,2959.3,12.73677193]
[1768985032702,12.21946506,2960.2,2959.5,0.002]
[1768985035779,12.21946506,2960.2,2959.5,12.73877193]
[1768985036478,12.21946506,2960.2,2959.5,0.002]
[1768985036676,12.21946506,2960.0,2959.5,0.002]
[1768985040604,12.21946506,2960.0,2959.5,12.73877193]
[1768985040804,12.21946506,2960.4,2959.5,12.73877193]
[1768985041001,12.26169051,2960.3,2959.5,12.73877193]
[1768985041335,12.21946506,2960.3,2959.5,12.73877193]
[1768985041508,12.00075163,2960.1,2959.5,12.73877193]
[1768985042514,4.93995469,2960.4,2959.5,12.73877193]
[1768985042717,12.04297708,2960.3,2959.5,0.002]
[1768985042914,12.00075163,2960.3,2959.5,0.002]
[1768985043115,12.00075163,2960.1,2959.5,0.002]
[1768985043637,12.00075163,2960.1,2959.5,12.5794299]
[1768985045437,12.00075163,2960.1,2958.7,3.37984035]
[1768985045438,12.00075163,2959.8,2958.3,12.5804299]
[1768985045750,12.00075163,2959.1,2958.3,12.5804299]
[1768985045929,12.00075163,2959.1,2958.4,1.25804299]
[1768985046134,0.05072195,2959.2,2958.4,13.83547289]
[1768985046335,12.00075163,2959.1,2958.4,13.83547289]
[1768985047354,12.00075163,2959.1,2958.4,17.21567256]
[1768985047516,12.00075163,2959.1,2958.5,12.5774299]
[1768985048643,0.05072195,2959.2,2958.7,12.5774299]
[1768985052851,0.05072195,2959.2,2958.8,15.9571017]
[1768985053239,12.00075163,2959.9,2958.9,12.5774299]
[1768985053432,0.001,2960.0,2958.9,12.5774299]
[1768985053433,12.00075163,2959.8,2958.9,12.5774299]
[1768985055061,12.00075163,2959.8,2959.0,3.3795201]
[1768985055269,12.00075163,2959.8,2959.1,14.1731249]
[1768985056449,12.14719312,2960.0,2959.1,14.1731249]
[1768985056633,0.001,2960.0,2959.1,14.1731249]
[1768985056840,12.14719312,2960.0,2959.1,14.1731249]
[1768985057294,12.14719312,2960.0,2959.3,12.27343039]
[1768985057466,12.14719312,2960.0,2959.3,13.95310264]
[1768985058249,0.001,2959.6,2959.3,13.95310264]
[1768985059273,0.001,2959.6,2959.4,12.27343039]
[1768985059878,0.001,2960.0,2959.4,12.27343039]
[1768985060833,12.14619312,2960.5,2959.4,12.27343039]
[1768985061035,12.14619312,2960.5,2959.6,12.27343039]
[1768985061663,12.14619312,2960.5,2959.7,3.37872081]
[1768985061847,12.14619312,2960.5,2959.8,12.27343039]
[1768985063352,12.14619312,2961.0,2959.8,12.27343039]
[1768985063568,12.14619312,2960.8,2959.8,12.27343039]
[1768985063756,12.14619312,2960.8,2960.0,12.27343039]
[1768985065465,0.04221974,2960.7,2960.0,12.27343039]
[1768985065694,12.14619312,2960.6,2960.0,12.27343039]
[1768985065995,12.14619312,2960.5,2960.0,12.27343039]
[1768985070396,0.001,2960.3,2960.0,12.27343039]
[1768985071398,12.14719312,2960.3,2959.9,1.9030872]
[1768985071702,12.14719312,2960.3,2959.8,12.27543039]
[1768985072200,0.001,2960.3,2959.8,12.27543039]
[1768985072402,0.001,2960.3,2959.9,12.27343039]
[1768985073114,12.14719312,2960.3,2959.9,12.27343039]
[1768985073317,12.14719312,2960.3,2959.8,12.27543039]
[1768985073609,12.14719312,2960.3,2959.8,0.002]
[1768985073775,12.14719312,2960.3,2959.8,12.27543039]
[1768985076879,12.14719312,2960.3,2959.8,0.002]
[1768985077387,12.14719312,2960.3,2959.8,12.27543039]
[1768985077815,0.001,2960.3,2959.8,4.94600281]
[1768985077975,0.001,2960.3,2959.9,12.27343039]
[1768985082414,12.14719312,2960.3,2959.9,12.27343039]
[1768985083118,12.14719312,2960.3,2960.0,0.002]
[1768985083321,0.001,2960.1,2960.0,0.002]
[1768985084317,0.001,2960.1,2960.0,12.27543039]
[1768985085609,0.001,2960.1,2960.0,0.002]
[1768985086014,0.001,2960.1,2960.0,11.89250635]
[1768985086896,12.50721115,2960.6,2960.1,11.89050635]
[1768985088417,12.50721115,2961.0,2960.2,11.89050635]
[1768985089704,0.001,2961.1,2960.2,11.89050635]
[1768985090421,0.001,2961.1,2960.4,11.89050635]
[1768985091831,12.50821115,2961.1,2960.4,11.89050635]
[1768985092039,12.50821115,2961.1,2960.4,13.75517224]
[1768985092244,12.50821115,2961.1,2960.3,11.89050635]
[1768985093235,12.50821115,2961.1,2960.3,15.26854]
[1768985093536,12.50821115,2961.1,2960.4,11.89050635]
[1768985094696,12.50661115,2961.1,2960.5,11.89050635]
[1768985094900,12.50721115,2961.4,2960.5,11.89050635]
[1768985095201,0.001,2960.9,2960.5,13.75514914]
[1768985097236,12.50821115,2960.9,2960.5,1.86464279]
[1768985098326,12.50821115,2960.9,2960.4,11.89050635]
[1768985098934,12.50821115,2960.9,2960.5,11.89050635]
[1768985101553,0.001,2960.9,2960.5,11.89050635]
[1768985101738,0.001,2960.9,2960.6,12.110187]
[1768985101934,11.85046478,2960.9,2960.4,12.110187]
[1768985102134,11.85046478,2960.9,2960.3,3.37797785]
[1768985102445,11.85046478,2960.9,2960.4,0.83133436]
[1768985102948,11.85046478,2960.9,2960.4,12.94152136]
[1768985103151,11.85046478,2960.9,2960.2,12.110187]
[1768985103352,11.85046478,2960.9,2960.1,3.37822925]
[1768985103645,11.85046478,2960.9,2960.0,16.67996344]
[1768985103855,11.85046478,2960.9,2960.0,13.30163764]
[1768985104037,11.85046478,2960.9,2960.0,16.68000013]
[1768985104232,11.85046478,2960.9,2960.1,1.72390001]
[1768985104848,11.85046478,2960.9,2960.1,5.10215747]
[1768985105056,11.85046478,2960.9,2960.2,12.110187]
[1768985105756,11.85046478,2960.9,2960.1,12.110187]
[1768985106757,11.85046478,2960.9,2960.1,15.4884436]
[1768985107457,11.85046478,2960.9,2960.1,12.110187]
[1768985111032,11.85046478,2960.9,2960.1,15.48844944]
[1768985111275,11.85046478,2960.9,2960.2,13.77817701]
[1768985115278,11.85046478,2960.9,2960.3,12.110187]
[1768985117165,0.001,2960.9,2960.3,15.48820623]
[1768985117474,0.001,2960.9,2960.4,11.82156276]
[1768985117676,12.02635054,2960.9,2960.4,11.82156276]
[1768985120377,12.02635054,2960.9,2960.4,13.62303665]
[1768985120957,0.001,2960.9,2960.5,11.82156276]
[1768985121687,0.001,2960.9,2960.6,11.82156276]
[1768985121869,12.02535054,2961.4,2960.6,11.82156276]
[1768985122081,0.001,2961.5,2960.8,11.82156276]
[1768985123486,0.001,2961.5,2961.0,11.82156276]
[1768985123784,0.001,2961.5,2960.5,15.75828298]
[1768985123785,12.02635054,2961.5,2960.5,15.75828298]
[1768985123977,12.02535054,2961.3,2960.5,15.75828298]
[1768985124976,12.02535054,2961.1,2960.5,11.82156276]
[1768985125377,12.02535054,2960.9,2960.3,0.002]
[1768985126786,12.02535054,2960.9,2960.3,11.82356276]
[1768985127086,12.02535054,2960.9,2960.3,0.002]
[1768985127852,0.001,2961.5,2960.3,14.1751463]
[1768985127853,12.02535054,2961.4,2960.3,14.1751463]
[1768985128273,12.02535054,2961.4,2960.5,11.82156276]
[1768985129200,12.02535054,2961.2,2960.5,11.82156276]
[1768985129603,12.02535054,2961.0,2960.5,11.82156276]
[1768985129890,12.02535054,2961.0,2960.3,11.82356276]
[1768985130098,12.02535054,2961.0,2960.3,0.002]
[1768985130273,13.22788559,2961.0,2960.3,0.002]
[1768985130795,13.22788559,2961.0,2960.5,0.002]
[1768985131396,13.22788559,2961.0,2960.5,11.82356276]
[1768985131694,0.001,2961.2,2960.5,11.82356276]
[1768985131695,12.02635054,2961.2,2960.6,11.82156276]
[1768985135095,0.001,2961.2,2960.7,11.82156276]
[1768985135605,12.02635054,2961.2,2960.7,11.82156276]
[1768985137710,12.02635054,2961.2,2960.5,0.002]
[1768985138211,12.02635054,2961.2,2960.5,11.82356276]
[1768985138411,12.02635054,2961.2,2960.6,1.85794038]
[1768985139916,12.02635054,2961.2,2960.6,5.23560409]
[1768985140220,12.02635054,2961.2,2960.6,3.37766371]
[1768985140519,12.02635054,2961.2,2960.6,11.82156276]
[1768985141311,12.02635054,2961.2,2960.7,11.82156276]
[1768985142436,0.001,2961.0,2960.7,11.82156276]
[1768985146343,0.001,2961.0,2960.5,12.31403602]
[1768985146553,12.09773643,2961.0,2960.5,14.77063264]
[1768985147255,0.001,2961.0,2960.5,14.77063264]
[1768985147851,0.001,2961.0,2960.6,12.31203602]
[1768985150071,12.09773643,2961.0,2960.5,14.77063264]
[1768985150220,12.09773643,2961.0,2960.5,2.45859662]
[1768985150858,12.09773643,2961.0,2960.5,14.77063264]
[1768985152426,12.09773643,2961.0,2960.5,2.45859662]
[1768985153368,12.09773643,2961.0,2960.5,0.002]
[1768985153650,12.09673643,2960.9,2960.3,0.002]
[1768985153855,12.09673643,2960.9,2960.0,0.561]
[1768985154062,12.09673643,2960.9,2960.7,0.002]
[1768985154364,4.93604371,2961.0,2960.5,0.002]
[1768985154365,12.09673643,2960.7,2960.5,0.002]
[1768985154954,12.09673643,2960.9,2960.5,0.002]
[1768985161360,12.09673643,2960.9,2960.5,12.37706924]
[1768985161551,0.001,2961.0,2960.5,12.37706924]
[1768985161860,0.001,2961.0,2960.7,12.37506924]
[1768985163238,0.001,2961.0,2960.5,0.002]
[1768985163568,11.83510896,2961.0,2960.5,12.37706924]
[1768985165974,11.83510896,2961.0,2960.7,0.002]
[1768985166267,0.001,2960.8,2960.7,0.002]
[1768985167673,0.001,2960.8,2960.7,12.37706924]
[1768985167868,0.001,2961.2,2960.8,12.37506924]
[1768985169370,11.83510896,2961.2,2960.8,12.37506924]
[1768985170682,11.83510896,2961.2,2960.7,4.95525296]
[1768985171356,11.83510896,2961.2,2960.7,15.75463496]
[1768985171562,11.83510896,2961.2,2960.8,12.37506924]
[1768985176285,11.83510896,2961.2,2960.7,0.002]
[1768985176496,11.83510896,2961.2,2960.7,12.4390367]
[1768985176992,11.83510896,2961.2,2960.7,0.002]
[1768985177284,11.83510896,2961.2,2960.7,1.63976787]
[1768985178060,11.83510896,2961.2,2960.7,12.4390367]
[1768985178388,11.83510896,2961.2,2960.9,0.002]
[1768985178590,0.001,2961.0,2960.9,0.002]
[1768985183295,0.001,2961.2,2960.9,12.4390367]
[1768985183468,0.001,2961.5,2961.0,4.93504371]
[1768985183795,11.8731623,2961.8,2961.2,12.4370367]
[1768985184005,3.42510922,2962.9,2961.3,12.4370367]
[1768985184006,11.8731623,2962.4,2961.3,12.4370367]
[1768985184220,0.001,2963.5,2962.1,12.4370367]
[1768985184221,11.8731623,2962.8,2962.1,12.4370367]
[1768985184496,13.06047853,2962.8,2961.9,15.81319613]
[1768985185796,13.06047853,2962.8,2962.0,12.4370367]
[1768985186763,13.06047853,2962.8,2961.9,3.37615766]
[1768985187192,13.06047853,2962.8,2961.9,15.81319436]
[1768985188100,13.06047853,2962.8,2962.0,12.4370367]
[1768985189850,13.06047853,2962.8,2962.0,17.3944395]
[1768985190020,11.8731623,2962.8,2962.1,12.4370367]
[1768985190195,11.8731623,2963.4,2962.1,12.4370367]
[1768985190517,11.8731623,2963.4,2962.0,13.26854374]
[1768985190518,11.8731623,2963.2,2962.4,12.4370367]